[Event "*** SCC Grand Prix: Titled Tuesday Blitz"]
[Site "Chess.com"]
[Date "2020.06.02"]
[Round "10"]
[White "Charlottemillard17"]
[Black "PawnEatingZombie"]
[Result "1/2-1/2"]
[WhiteElo "1518"]
[BlackElo "2195"]
[TimeControl "180+1"]
[EndTime "11:58:18 PDT"]
[Termination "Game drawn by repetition"]

1. e4 {[%clk 0:02:34.2]} 1... c6 {[%clk 0:02:58.5]} 2. d4 {[%clk 0:02:33]} 2...
d5 {[%clk 0:02:58.7]} 3. e5 {[%clk 0:02:31.9]} 3... Bf5 {[%clk 0:02:58]} 4. f4
{[%clk 0:02:30.1]} 4... e6 {[%clk 0:02:57.7]} 5. Nf3 {[%clk 0:02:28.5]} 5... h5
{[%clk 0:02:52.8]} 6. Nc3 {[%clk 0:02:23.1]} 6... Nh6 {[%clk 0:02:41.5]} 7. h3
{[%clk 0:02:17.9]} 7... h4 {[%clk 0:02:38.7]} 8. Be3 {[%clk 0:01:57.6]} 8... Be7
{[%clk 0:02:38.2]} 9. Bd3 {[%clk 0:01:39.7]} 9... Bxd3 {[%clk 0:02:37.3]} 10.
Qxd3 {[%clk 0:01:40.6]} 10... Nf5 {[%clk 0:02:37.6]} 11. O-O-O {[%clk
0:01:38.8]} 11... Nd7 {[%clk 0:02:22]} 12. a3 {[%clk 0:01:33.3]} 12... Qa5
{[%clk 0:02:18.5]} 13. Bd2 {[%clk 0:01:21]} 13... Qc7 {[%clk 0:02:16]} 14. Rhg1
{[%clk 0:01:07]} 14... a6 {[%clk 0:02:15.4]} 15. g4 {[%clk 0:00:51.1]} 15...
hxg3 {[%clk 0:02:13.7]} 16. Ng5 {[%clk 0:00:34.5]} 16... Bxg5 {[%clk 0:01:39.2]}
17. fxg5 {[%clk 0:00:35.4]} 17... Rxh3 {[%clk 0:01:27.8]} 18. Ne2 {[%clk
0:00:33.6]} 18... O-O-O {[%clk 0:01:20.2]} 19. Nxg3 {[%clk 0:00:27.2]} 19...
Rdh8 {[%clk 0:01:13]} 20. Bf4 {[%clk 0:00:20.8]} 20... g6 {[%clk 0:00:59.4]} 21.
Qf1 {[%clk 0:00:20.2]} 21... Nxg3 {[%clk 0:00:55.7]} 22. Rxg3 {[%clk 0:00:17.3]}
22... Rxg3 {[%clk 0:00:51]} 23. Bxg3 {[%clk 0:00:16.4]} 23... c5 {[%clk
0:00:51.1]} 24. Qxf7 {[%clk 0:00:16.1]} 24... Rh3 {[%clk 0:00:29.3]} 25. Bf4
{[%clk 0:00:14.6]} 25... cxd4 {[%clk 0:00:22.3]} 26. Qxe6 {[%clk 0:00:14.2]}
26... Kb8 {[%clk 0:00:20.4]} 27. Qxh3 {[%clk 0:00:13.8]} 27... Qc4 {[%clk
0:00:16.6]} 28. Qxd7 {[%clk 0:00:12.7]} 28... Ka7 {[%clk 0:00:14.8]} 29. e6
{[%clk 0:00:12.7]} 29... Qa2 {[%clk 0:00:13.8]} 30. Kd2 {[%clk 0:00:12]} 30...
Qxb2 {[%clk 0:00:13.6]} 31. e7 {[%clk 0:00:11.6]} 31... Qc3+ {[%clk 0:00:14]}
32. Kc1 {[%clk 0:00:11.3]} 32... Qa1+ {[%clk 0:00:13.5]} 33. Kd2 {[%clk
0:00:10.7]} 33... Qc3+ {[%clk 0:00:14.1]} 34. Kc1 {[%clk 0:00:11]} 34... Qa1+
{[%clk 0:00:14.2]} 35. Kd2 {[%clk 0:00:11.4]} 35... Qc3+ {[%clk 0:00:14.9]}
1/2-1/2

[Event "*** SCC Grand Prix: Titled Tuesday Blitz"]
[Site "Chess.com"]
[Date "2020.06.02"]
[Round "10"]
[White "themind1hunter"]
[Black "Indianlad"]
[Result "0-1"]
[WhiteElo "2550"]
[BlackElo "3012"]
[TimeControl "180+1"]
[EndTime "11:58:21 PDT"]
[Termination "Indianlad won on time"]

1. e4 {[%clk 0:03:00.9]} 1... c5 {[%clk 0:02:57.8]} 2. Nf3 {[%clk 0:03:00]} 2...
d6 {[%clk 0:02:58.2]} 3. d4 {[%clk 0:03:00.2]} 3... cxd4 {[%clk 0:02:58.8]} 4.
Nxd4 {[%clk 0:03:01.1]} 4... Nf6 {[%clk 0:02:59.4]} 5. Nc3 {[%clk 0:03:00.7]}
5... a6 {[%clk 0:03:00.1]} 6. Be3 {[%clk 0:02:52.7]} 6... e5 {[%clk 0:02:57.5]}
7. Nb3 {[%clk 0:02:52.4]} 7... Be6 {[%clk 0:02:57.4]} 8. Qd2 {[%clk 0:02:52.4]}
8... Nbd7 {[%clk 0:02:57.1]} 9. O-O-O {[%clk 0:02:52.5]} 9... Rc8 {[%clk
0:02:57.1]} 10. f4 {[%clk 0:02:50.1]} 10... b5 {[%clk 0:02:57.2]} 11. Kb1 {[%clk
0:02:50.2]} 11... h5 {[%clk 0:02:52.8]} 12. h3 {[%clk 0:02:47.7]} 12... Be7
{[%clk 0:02:52.2]} 13. Bd3 {[%clk 0:02:43.8]} 13... Nb6 {[%clk 0:02:43.4]} 14.
Bxb6 {[%clk 0:02:28]} 14... Qxb6 {[%clk 0:02:42.8]} 15. Nd5 {[%clk 0:02:28.9]}
15... Bxd5 {[%clk 0:02:41.6]} 16. exd5 {[%clk 0:02:28.9]} 16... e4 {[%clk
0:02:42.2]} 17. Be2 {[%clk 0:02:27.6]} 17... h4 {[%clk 0:02:38.9]} 18. Nd4
{[%clk 0:02:12.5]} 18... Rc5 {[%clk 0:02:33.4]} 19. g4 {[%clk 0:01:33.1]} 19...
hxg3 {[%clk 0:02:31.6]} 20. Qe3 {[%clk 0:01:24]} 20... Rxd5 {[%clk 0:02:30.9]}
21. c3 {[%clk 0:01:24.1]} 21... b4 {[%clk 0:02:24]} 22. c4 {[%clk 0:01:16.3]}
22... Rc5 {[%clk 0:02:16.8]} 23. Qxg3 {[%clk 0:01:16]} 23... g6 {[%clk
0:02:16.6]} 24. f5 {[%clk 0:01:03.2]} 24... Rg8 {[%clk 0:01:55.8]} 25. fxg6
{[%clk 0:00:55.8]} 25... Rxg6 {[%clk 0:01:56.7]} 26. Qf4 {[%clk 0:00:54.1]}
26... Re5 {[%clk 0:01:57]} 27. Nf5 {[%clk 0:00:46.2]} 27... Rg2 {[%clk
0:01:46.4]} 28. Nxe7 {[%clk 0:00:46.1]} 28... Kxe7 {[%clk 0:01:34.7]} 29. Rhf1
{[%clk 0:00:43.1]} 29... Rg6 {[%clk 0:00:56.9]} 30. h4 {[%clk 0:00:35.2]} 30...
Re6 {[%clk 0:00:57.4]} 31. h5 {[%clk 0:00:34.1]} 31... Rg2 {[%clk 0:00:57.4]}
32. Rd2 {[%clk 0:00:19.6]} 32... Qc5 {[%clk 0:00:57.1]} 33. h6 {[%clk
0:00:18.6]} 33... e3 {[%clk 0:00:56.8]} 34. h7 {[%clk 0:00:16.3]} 34... exd2
{[%clk 0:00:44.3]} 35. h8=Q {[%clk 0:00:15.5]} 35... Rgxe2 {[%clk 0:00:44.9]}
36. Rd1 {[%clk 0:00:01.6]} 36... Rf2 {[%clk 0:00:27.8]} 0-1

[Event "*** SCC Grand Prix: Titled Tuesday Blitz"]
[Site "Chess.com"]
[Date "2020.06.02"]
[Round "10"]
[White "Xeniya2005"]
[Black "albano87"]
[Result "1-0"]
[WhiteElo "2312"]
[BlackElo "2404"]
[TimeControl "180+1"]
[EndTime "11:58:22 PDT"]
[Termination "Xeniya2005 won by resignation"]

1. e4 {[%clk 0:03:00.9]} 1... g6 {[%clk 0:02:48.4]} 2. d4 {[%clk 0:03:00.2]}
2... Bg7 {[%clk 0:02:46.4]} 3. Be3 {[%clk 0:02:56.4]} 3... d6 {[%clk 0:02:44.5]}
4. f3 {[%clk 0:02:49.8]} 4... c6 {[%clk 0:02:42.5]} 5. a4 {[%clk 0:02:46.1]}
5... a5 {[%clk 0:02:41.6]} 6. c3 {[%clk 0:02:44.8]} 6... Nf6 {[%clk 0:02:39.6]}
7. Nd2 {[%clk 0:02:43.8]} 7... Qc7 {[%clk 0:02:38.5]} 8. Bd3 {[%clk 0:02:38.6]}
8... Na6 {[%clk 0:02:38.2]} 9. Ne2 {[%clk 0:02:35]} 9... O-O {[%clk 0:02:36.2]}
10. O-O {[%clk 0:02:33.9]} 10... e5 {[%clk 0:02:29.2]} 11. Qc2 {[%clk
0:02:32.5]} 11... Be6 {[%clk 0:02:16.4]} 12. h3 {[%clk 0:02:20.9]} 12... Rfd8
{[%clk 0:02:10.7]} 13. f4 {[%clk 0:02:17.9]} 13... exf4 {[%clk 0:01:49]} 14.
Nxf4 {[%clk 0:02:11.1]} 14... Rac8 {[%clk 0:01:16.3]} 15. Rae1 {[%clk
0:01:56.9]} 15... c5 {[%clk 0:00:55.3]} 16. d5 {[%clk 0:01:51.1]} 16... Bd7
{[%clk 0:00:52.6]} 17. Bxa6 {[%clk 0:01:44.9]} 17... bxa6 {[%clk 0:00:52.3]} 18.
Nc4 {[%clk 0:01:44.3]} 18... Be8 {[%clk 0:00:41.1]} 19. Bf2 {[%clk 0:01:30.2]}
19... g5 {[%clk 0:00:19.7]} 20. Nd3 {[%clk 0:01:24.1]} 20... Nd7 {[%clk
0:00:19.8]} 21. Bg3 {[%clk 0:01:20.9]} 21... Ne5 {[%clk 0:00:19.4]} 22. Bxe5
{[%clk 0:01:18.9]} 22... dxe5 {[%clk 0:00:19.1]} 23. Nf2 {[%clk 0:01:10.8]}
23... f6 {[%clk 0:00:18.5]} 24. Ng4 {[%clk 0:01:10.3]} 24... Qf7 {[%clk
0:00:15]} 25. Ngxe5 {[%clk 0:01:07.9]} 25... Qe7 {[%clk 0:00:12.6]} 26. Ng4
{[%clk 0:01:06.8]} 26... h5 {[%clk 0:00:12.7]} 27. Nge3 {[%clk 0:01:06.1]} 27...
Bg6 {[%clk 0:00:12.4]} 28. Nf5 {[%clk 0:01:04.8]} 28... Bxf5 {[%clk 0:00:12.4]}
29. Rxf5 {[%clk 0:01:03.3]} 29... Re8 {[%clk 0:00:10.5]} 30. Qf2 {[%clk
0:01:01.8]} 30... Rcd8 {[%clk 0:00:08.5]} 31. Nxa5 {[%clk 0:01:00]} 31... Qd7
{[%clk 0:00:07.3]} 32. Nc6 {[%clk 0:00:59.3]} 32... Rc8 {[%clk 0:00:05.8]} 33.
c4 {[%clk 0:00:54.7]} 33... Kh7 {[%clk 0:00:03.3]} 34. Rf1 {[%clk 0:00:52.7]}
34... Rf8 {[%clk 0:00:01.9]} 35. Qf3 {[%clk 0:00:51.7]} 35... Kg6 {[%clk
0:00:02]} 36. g4 {[%clk 0:00:45]} 36... h4 {[%clk 0:00:02.1]} 37. Qe2 {[%clk
0:00:41.5]} 37... Qd6 {[%clk 0:00:02.1]} 38. R1f3 {[%clk 0:00:39.3]} 38... Qg3+
{[%clk 0:00:02.5]} 39. Rxg3 {[%clk 0:00:39.2]} 39... hxg3 {[%clk 0:00:02.4]} 40.
e5 {[%clk 0:00:38.3]} 40... fxe5 {[%clk 0:00:02.3]} 41. Ne7+ {[%clk 0:00:36.7]}
41... Kh7 {[%clk 0:00:01.9]} 42. Nxc8 {[%clk 0:00:36.7]} 42... Rxc8 {[%clk
0:00:01.8]} 43. Rxe5 {[%clk 0:00:36.3]} 1-0

[Event "*** SCC Grand Prix: Titled Tuesday Blitz"]
[Site "Chess.com"]
[Date "2020.06.02"]
[Round "10"]
[White "chito89"]
[Black "Arkady_Gitelson"]
[Result "0-1"]
[WhiteElo "2774"]
[BlackElo "2514"]
[TimeControl "180+1"]
[EndTime "11:58:23 PDT"]
[Termination "Arkady_Gitelson won on time"]

1. e4 {[%clk 0:03:00.9]} 1... c5 {[%clk 0:02:59.9]} 2. Nf3 {[%clk 0:02:58.4]}
2... Nc6 {[%clk 0:03:00.3]} 3. d4 {[%clk 0:02:57]} 3... cxd4 {[%clk 0:03:01.2]}
4. Nxd4 {[%clk 0:02:57.3]} 4... e5 {[%clk 0:03:01.4]} 5. Nb5 {[%clk 0:02:56]}
5... d6 {[%clk 0:03:01.4]} 6. c4 {[%clk 0:02:55.7]} 6... Be7 {[%clk 0:02:58.7]}
7. N1c3 {[%clk 0:02:53.1]} 7... a6 {[%clk 0:02:58.6]} 8. Na3 {[%clk 0:02:52.5]}
8... f5 {[%clk 0:02:59.1]} 9. exf5 {[%clk 0:02:52.2]} 9... Bxf5 {[%clk 0:03:00]}
10. Bd3 {[%clk 0:02:52.3]} 10... Be6 {[%clk 0:03:00.4]} 11. Nc2 {[%clk
0:02:47.8]} 11... Nf6 {[%clk 0:02:58.8]} 12. Ne3 {[%clk 0:02:46.6]} 12... Qd7
{[%clk 0:02:53.8]} 13. Ncd5 {[%clk 0:02:42.1]} 13... Bd8 {[%clk 0:02:53.2]} 14.
O-O {[%clk 0:02:38.3]} 14... O-O {[%clk 0:02:52.1]} 15. Nxf6+ {[%clk 0:02:38.5]}
15... Bxf6 {[%clk 0:02:50.2]} 16. Be4 {[%clk 0:02:39.4]} 16... Nd4 {[%clk
0:02:45.6]} 17. Bd5 {[%clk 0:02:35.1]} 17... Bg5 {[%clk 0:02:34.6]} 18. Qd3
{[%clk 0:02:23]} 18... Bxd5 {[%clk 0:02:16.6]} 19. Nxd5 {[%clk 0:02:18.8]} 19...
Bxc1 {[%clk 0:01:53.8]} 20. Raxc1 {[%clk 0:02:19.7]} 20... Qg4 {[%clk
0:01:39.5]} 21. Kh1 {[%clk 0:01:57.1]} 21... Rae8 {[%clk 0:01:23.3]} 22. f3
{[%clk 0:01:53.4]} 22... Qh4 {[%clk 0:01:22.3]} 23. Rce1 {[%clk 0:01:45.8]}
23... Re6 {[%clk 0:01:09.4]} 24. Re4 {[%clk 0:01:25.9]} 24... Qg5 {[%clk
0:00:53.6]} 25. f4 {[%clk 0:01:09.5]} 25... Qf5 {[%clk 0:00:37.3]} 26. Kg1
{[%clk 0:00:40.9]} 26... Nc6 {[%clk 0:00:19.2]} 27. Qe3 {[%clk 0:00:19.5]} 27...
Rg6 {[%clk 0:00:15]} 28. Rf3 {[%clk 0:00:08.1]} 28... Qd7 {[%clk 0:00:10.9]} 29.
fxe5 {[%clk 0:00:04.5]} 29... Nxe5 {[%clk 0:00:09.9]} 30. Rxf8+ {[%clk 0:00:04]}
30... Kxf8 {[%clk 0:00:10.8]} 31. c5 {[%clk 0:00:02.4]} 31... Nf7 {[%clk
0:00:08.7]} 32. Re7 {[%clk 0:00:01.5]} 32... Qc8 {[%clk 0:00:04.7]} 0-1

[Event "*** SCC Grand Prix: Titled Tuesday Blitz"]
[Site "Chess.com"]
[Date "2020.06.02"]
[Round "10"]
[White "CrazyMartian"]
[Black "Larina_Marija"]
[Result "1-0"]
[WhiteElo "2290"]
[BlackElo "2124"]
[TimeControl "180+1"]
[EndTime "11:58:23 PDT"]
[Termination "CrazyMartian won on time"]

1. d4 {[%clk 0:03:00.9]} 1... f5 {[%clk 0:02:59.8]} 2. Nc3 {[%clk 0:02:59.9]}
2... Nf6 {[%clk 0:02:59.6]} 3. Bg5 {[%clk 0:02:52]} 3... d5 {[%clk 0:02:59.8]}
4. Bxf6 {[%clk 0:02:50.9]} 4... exf6 {[%clk 0:03:00.7]} 5. e3 {[%clk 0:02:51.6]}
5... Be6 {[%clk 0:03:00.2]} 6. Bd3 {[%clk 0:02:49.4]} 6... Qd7 {[%clk
0:02:59.6]} 7. a3 {[%clk 0:02:48.7]} 7... g6 {[%clk 0:02:52.6]} 8. Qf3 {[%clk
0:02:44.1]} 8... Nc6 {[%clk 0:02:44.8]} 9. Nge2 {[%clk 0:02:35.2]} 9... O-O-O
{[%clk 0:02:37.9]} 10. Nf4 {[%clk 0:02:29.2]} 10... Bf7 {[%clk 0:02:36.5]} 11.
h4 {[%clk 0:02:29]} 11... h5 {[%clk 0:02:35.9]} 12. Bb5 {[%clk 0:02:20.6]} 12...
Qd6 {[%clk 0:02:28.3]} 13. Nd3 {[%clk 0:02:16.9]} 13... a6 {[%clk 0:02:24.1]}
14. Bxc6 {[%clk 0:02:13]} 14... Qxc6 {[%clk 0:02:23.3]} 15. O-O {[%clk
0:02:12.2]} 15... Kb8 {[%clk 0:02:04.5]} 16. Nb4 {[%clk 0:02:11.3]} 16... Qd7
{[%clk 0:01:54.7]} 17. Nd3 {[%clk 0:02:11]} 17... g5 {[%clk 0:01:51.7]} 18. b4
{[%clk 0:02:02.1]} 18... Rg8 {[%clk 0:01:12.3]} 19. Nc5 {[%clk 0:01:59]} 19...
Bxc5 {[%clk 0:01:11.6]} 20. bxc5 {[%clk 0:01:58.7]} 20... gxh4 {[%clk
0:00:48.2]} 21. Rab1 {[%clk 0:01:55.9]} 21... c6 {[%clk 0:00:45.7]} 22. Rb6
{[%clk 0:01:51.6]} 22... Ka7 {[%clk 0:00:43.6]} 23. Rfb1 {[%clk 0:01:51.3]}
23... Rb8 {[%clk 0:00:43.8]} 24. Ne2 {[%clk 0:01:31.3]} 24... Be6 {[%clk
0:00:32.4]} 25. Nf4 {[%clk 0:01:31.1]} 25... Rg4 {[%clk 0:00:30.8]} 26. Kh2
{[%clk 0:01:06.4]} 26... Qc7 {[%clk 0:00:30.2]} 27. Kh1 {[%clk 0:01:05.2]} 27...
Qd7 {[%clk 0:00:30]} 28. Nxh5 {[%clk 0:01:02.3]} 28... Qf7 {[%clk 0:00:15]} 29.
Nf4 {[%clk 0:01:01.8]} 29... Bc8 {[%clk 0:00:06.2]} 30. Kg1 {[%clk 0:00:59.4]}
30... Qg7 {[%clk 0:00:04.9]} 31. Kf1 {[%clk 0:00:58.9]} 31... Qg5 {[%clk
0:00:04.2]} 32. Ke2 {[%clk 0:00:58.7]} 32... Qg7 {[%clk 0:00:03.7]} 33. Kd2
{[%clk 0:00:58.7]} 33... Qe7 {[%clk 0:00:03]} 34. Kc3 {[%clk 0:00:58.5]} 34...
Qe4 {[%clk 0:00:03.2]} 35. Qxe4 {[%clk 0:00:57.5]} 35... fxe4 {[%clk 0:00:04.1]}
36. Rh1 {[%clk 0:00:56.4]} 36... Bd7 {[%clk 0:00:03.3]} 37. Rh2 {[%clk
0:00:53.6]} 37... Rh8 {[%clk 0:00:03.8]} 38. Rb1 {[%clk 0:00:52.8]} 38... Bc8
{[%clk 0:00:04]} 39. Rbh1 {[%clk 0:00:52.7]} 39... Rh7 {[%clk 0:00:03.5]} 40.
Kd2 {[%clk 0:00:47.9]} 40... Rh6 {[%clk 0:00:01.8]} 41. a4 {[%clk 0:00:47.3]}
1-0

[Event "*** SCC Grand Prix: Titled Tuesday Blitz"]
[Site "Chess.com"]
[Date "2020.06.02"]
[Round "10"]
[White "StockholmMissile"]
[Black "AcostaPablo"]
[Result "1-0"]
[WhiteElo "2459"]
[BlackElo "2581"]
[TimeControl "180+1"]
[EndTime "11:58:25 PDT"]
[Termination "StockholmMissile won by resignation"]

1. d4 {[%clk 0:03:00.9]} 1... Nf6 {[%clk 0:02:57.3]} 2. c4 {[%clk 0:02:59.8]}
2... g6 {[%clk 0:02:57.3]} 3. Nc3 {[%clk 0:02:59.4]} 3... Bg7 {[%clk 0:02:57.9]}
4. e4 {[%clk 0:02:59.3]} 4... d6 {[%clk 0:02:58.3]} 5. h3 {[%clk 0:02:59.7]}
5... O-O {[%clk 0:02:57.4]} 6. Be3 {[%clk 0:02:59.1]} 6... e5 {[%clk 0:02:57.3]}
7. d5 {[%clk 0:02:58.7]} 7... a5 {[%clk 0:02:57.3]} 8. g4 {[%clk 0:02:58.7]}
8... Na6 {[%clk 0:02:57.6]} 9. Nge2 {[%clk 0:02:58.9]} 9... Nc5 {[%clk
0:02:57.4]} 10. Ng3 {[%clk 0:02:59.1]} 10... c6 {[%clk 0:02:57.4]} 11. Be2
{[%clk 0:02:57.8]} 11... a4 {[%clk 0:02:57.5]} 12. Qd2 {[%clk 0:02:54.5]} 12...
Qa5 {[%clk 0:02:50.9]} 13. Rc1 {[%clk 0:02:49]} 13... cxd5 {[%clk 0:02:50]} 14.
exd5 {[%clk 0:02:37.8]} 14... Bd7 {[%clk 0:02:40.4]} 15. g5 {[%clk 0:02:35.2]}
15... Ne8 {[%clk 0:02:39.6]} 16. Nge4 {[%clk 0:02:33.3]} 16... Nxe4 {[%clk
0:02:32.4]} 17. Nxe4 {[%clk 0:02:32.2]} 17... Bf5 {[%clk 0:02:18]} 18. Qxa5
{[%clk 0:02:26.1]} 18... Rxa5 {[%clk 0:02:18.9]} 19. Ng3 {[%clk 0:02:26.7]}
19... f6 {[%clk 0:02:13.8]} 20. h4 {[%clk 0:02:18.9]} 20... fxg5 {[%clk
0:02:09.6]} 21. hxg5 {[%clk 0:02:19.8]} 21... e4 {[%clk 0:02:09]} 22. Bd2 {[%clk
0:02:12.5]} 22... Rc5 {[%clk 0:01:42.7]} 23. Bc3 {[%clk 0:02:11.6]} 23... Nc7
{[%clk 0:01:33.9]} 24. Bxg7 {[%clk 0:02:09.2]} 24... Kxg7 {[%clk 0:01:34.8]} 25.
O-O {[%clk 0:02:08.3]} 25... Rc8 {[%clk 0:01:31.8]} 26. b4 {[%clk 0:02:07.2]}
26... axb3 {[%clk 0:01:30.9]} 27. axb3 {[%clk 0:02:08.1]} 27... Ra5 {[%clk
0:01:30.4]} 28. Rfd1 {[%clk 0:01:49.7]} 28... Na6 {[%clk 0:01:26.6]} 29. Ra1
{[%clk 0:01:44.6]} 29... Rcc5 {[%clk 0:01:23.1]} 30. b4 {[%clk 0:01:37.2]} 30...
Nxb4 {[%clk 0:01:19.8]} 31. Rxa5 {[%clk 0:01:27.7]} 31... Rxa5 {[%clk
0:01:19.8]} 32. Rb1 {[%clk 0:01:27.8]} 32... Nc2 {[%clk 0:01:16]} 33. Rxb7+
{[%clk 0:01:26.2]} 33... Kg8 {[%clk 0:01:16.4]} 34. Rb6 {[%clk 0:01:18.5]} 34...
Nd4 {[%clk 0:01:07.5]} 35. Rxd6 {[%clk 0:01:13.6]} 35... Ra2 {[%clk 0:00:58.6]}
36. Bf1 {[%clk 0:01:04.4]} 36... Nf3+ {[%clk 0:00:55.6]} 37. Kg2 {[%clk
0:01:04.3]} 37... Ne1+ {[%clk 0:00:55.4]} 38. Kg1 {[%clk 0:00:48.6]} 38... e3
{[%clk 0:00:48.4]} 39. Be2 {[%clk 0:00:37.8]} 39... Nf3+ {[%clk 0:00:24.7]} 40.
Bxf3 {[%clk 0:00:29]} 40... exf2+ {[%clk 0:00:20.1]} 41. Kf1 {[%clk 0:00:19.5]}
41... Bh3+ {[%clk 0:00:20.3]} 42. Bg2 {[%clk 0:00:19.3]} 42... Bf5 {[%clk
0:00:20.8]} 43. Nxf5 {[%clk 0:00:16.5]} 43... gxf5 {[%clk 0:00:18.1]} 44. c5
{[%clk 0:00:16.4]} 1-0

[Event "*** SCC Grand Prix: Titled Tuesday Blitz"]
[Site "Chess.com"]
[Date "2020.06.02"]
[Round "10"]
[White "51616516516"]
[Black "quesfr"]
[Result "0-1"]
[WhiteElo "2350"]
[BlackElo "2255"]
[TimeControl "180+1"]
[EndTime "11:58:25 PDT"]
[Termination "quesfr won on time"]

1. Nf3 {[%clk 0:03:00]} 1... Nf6 {[%clk 0:02:59.1]} 2. c4 {[%clk 0:02:59.9]}
2... e6 {[%clk 0:02:58]} 3. d4 {[%clk 0:02:57.3]} 3... d5 {[%clk 0:02:58]} 4.
Nc3 {[%clk 0:02:57.3]} 4... c5 {[%clk 0:02:57.9]} 5. cxd5 {[%clk 0:02:56.8]}
5... exd5 {[%clk 0:02:57.3]} 6. g3 {[%clk 0:02:57]} 6... Nc6 {[%clk 0:02:55]} 7.
Bg2 {[%clk 0:02:56.4]} 7... cxd4 {[%clk 0:02:54.5]} 8. Nxd4 {[%clk 0:02:55.6]}
8... Bc5 {[%clk 0:02:54.6]} 9. Nb3 {[%clk 0:02:52.7]} 9... Bb6 {[%clk
0:02:54.6]} 10. O-O {[%clk 0:02:51.8]} 10... d4 {[%clk 0:02:53.5]} 11. Na4
{[%clk 0:02:41.2]} 11... O-O {[%clk 0:02:52]} 12. h3 {[%clk 0:02:05.8]} 12...
Re8 {[%clk 0:02:17.3]} 13. g4 {[%clk 0:01:53.2]} 13... Be6 {[%clk 0:01:48]} 14.
Nbc5 {[%clk 0:01:48.2]} 14... Bd5 {[%clk 0:01:40.6]} 15. Nxb7 {[%clk 0:01:36.9]}
15... Qe7 {[%clk 0:01:33.4]} 16. Nbc5 {[%clk 0:01:24.5]} 16... Bxg2 {[%clk
0:01:27.6]} 17. Kxg2 {[%clk 0:01:25.4]} 17... Bxc5 {[%clk 0:01:27.7]} 18. Qc2
{[%clk 0:01:04.2]} 18... d3 {[%clk 0:00:52]} 19. exd3 {[%clk 0:00:46.6]} 19...
Nd4 {[%clk 0:00:48.9]} 20. Qxc5 {[%clk 0:00:35.2]} 20... Qb7+ {[%clk 0:00:48.8]}
21. f3 {[%clk 0:00:33]} 21... Re2+ {[%clk 0:00:46.4]} 22. Kg3 {[%clk 0:00:26.4]}
22... Rd8 {[%clk 0:00:17.7]} 23. Bg5 {[%clk 0:00:19.5]} 23... Qb8+ {[%clk
0:00:16]} 24. Bf4 {[%clk 0:00:17.7]} 24... Qb7 {[%clk 0:00:14.8]} 25. Nc3 {[%clk
0:00:08.9]} 25... Ne6 {[%clk 0:00:14.5]} 26. Qb5 {[%clk 0:00:04.5]} 26... Qe7
{[%clk 0:00:13.2]} 27. Nxe2 {[%clk 0:00:03.5]} 27... Nd5 {[%clk 0:00:10.4]} 28.
Qb3 {[%clk 0:00:02]} 28... Ndxf4 {[%clk 0:00:09.4]} 29. Nxf4 {[%clk 0:00:02.9]}
29... Qd6 {[%clk 0:00:09]} 30. Qa4 {[%clk 0:00:01.8]} 30... g5 {[%clk
0:00:08.6]} 31. Rfe1 {[%clk 0:00:01.8]} 31... Nxf4 {[%clk 0:00:08.4]} 32. Kf2
{[%clk 0:00:02]} 32... Nxh3+ {[%clk 0:00:08.2]} 33. Kg2 {[%clk 0:00:01.7]} 33...
Nf4+ {[%clk 0:00:08.4]} 34. Kg1 {[%clk 0:00:02]} 34... Qh6 {[%clk 0:00:08.3]}
0-1